bitfinex/quotes_SOLUSD_20250310
["timestamp","ask_amount","ask_price","bid_price","bid_amount"]
[1741612640231,121.80102174,128.82,128.81,0.063]
[1741612640647,306.78102174,128.82,128.81,0.063]
[1741612641645,269.22884687,128.82,128.81,0.063]
[1741612641847,306.78102174,128.82,128.81,0.063]
[1741612643260,306.78102174,128.82,128.77,0.063]
[1741612643261,20.28432314,128.78,128.77,0.063]
[1741612643463,20.28432314,128.74,128.73,0.063]
[1741612643645,57.83649801,128.74,128.73,0.063]
[1741612643961,76.48614687,128.74,128.73,0.063]
[1741612644149,57.83649801,128.74,128.73,0.063]
[1741612646362,65.60399801,128.74,128.73,0.063]
[1741612646566,84.25364687,128.74,128.73,0.063]
[1741612648657,0.28432314,128.73,128.69,0.063]
[1741612648843,37.69433644,128.7,128.69,0.063]
[1741612649240,45.46433644,128.7,128.69,0.063]
[1741612650353,64.25614687,128.7,128.69,0.063]
[1741612650745,37.83649801,128.7,128.69,0.063]
[1741612650940,0.28432314,128.7,128.69,0.063]
[1741612652064,65.60649801,128.7,128.69,0.063]
[1741612652268,84.25614687,128.7,128.69,0.063]
[1741612652947,76.48614687,128.7,128.69,0.063]
[1741612653145,57.83649801,128.7,128.69,0.063]
[1741612653959,20.28432314,128.7,128.69,0.063]
[1741612654759,27.92432314,128.7,128.69,0.063]
[1741612654957,73.24649801,128.7,128.69,0.063]
[1741612655163,53.24649801,128.7,128.69,0.063]
[1741612655870,71.89614687,128.7,128.69,0.063]
[1741612656067,53.24649801,128.7,128.69,0.063]
[1741612656279,31.55018521,128.7,128.69,0.063]
[1741612656475,7.92432314,128.7,128.69,0.063]
[1741612656765,31.55018521,128.7,128.69,0.063]
[1741612657274,39.32018521,128.7,128.69,0.063]
[1741612657449,31.55018521,128.7,128.69,0.063]
[1741612657654,7.92432314,128.7,128.69,0.063]
[1741612658049,39.32018521,128.7,128.69,0.063]
[1741612660474,7.92432314,128.7,128.69,0.063]
[1741612660653,27.90432314,128.7,128.69,0.063]
[1741612660971,35.67432314,128.7,128.69,0.063]
[1741612661177,59.30018521,128.7,128.69,0.063]
[1741612661554,35.67432314,128.7,128.69,0.063]
[1741612661877,59.30018521,128.7,128.69,0.063]
[1741612663360,77.94983407,128.7,128.69,0.063]
[1741612666075,101.57569614,128.7,128.69,0.0001]
[1741612667074,81.57569614,128.7,128.69,0.0001]
[1741612667479,57.94983407,128.7,128.69,0.0001]
[1741612668063,31.68018521,128.7,128.69,0.0001]
[1741612668269,39.24018521,128.7,128.69,0.0001]
[1741612668482,0.28432314,128.69,128.68,0.03]
[1741612669179,31.68078521,128.69,128.68,0.03]
[1741612670459,31.39646207,128.69,128.68,0.03]
[1741612671059,224.13646207,128.69,128.68,0.03]
[1741612671860,185.2,128.69,128.68,0.03]
[1741612672474,185.48432314,128.69,128.68,0.03]
[1741612672679,216.88078521,128.69,128.68,0.03]
[1741612672983,209.11018521,128.69,128.68,0.03]
[1741612674389,216.88078521,128.69,128.68,0.03]
[1741612674587,185.48432314,128.69,128.68,0.03]
[1741612678092,8.05492314,128.69,128.68,0.03]
[1741612678586,31.68078521,128.69,128.68,0.03]
[1741612679171,112.78078521,128.69,128.68,0.03]
[1741612681997,31.68078521,128.69,128.68,0.03]
[1741612682769,50.33043407,128.69,128.68,0.03]
[1741612683194,0.28432314,128.68,128.67,0.063]
[1741612683374,31.68138521,128.68,128.67,0.063]
[1741612684976,50.33103407,128.68,128.67,0.063]
[1741612685171,20.0,128.64,128.6,1.6659]
[1741612685396,20.0,128.64,128.56,1.5714]
[1741612685397,0.14216157,128.6,128.56,1.5714]
[1741612685609,0.14216157,128.6,128.55,0.03]
[1741612685610,23.76802364,128.57,128.55,0.03]
[1741612685783,7.62216157,128.56,128.55,0.03]
[1741612686105,7.48,128.56,128.55,0.03]
[1741612687096,31.39018521,128.56,128.55,0.03]
[1741612687410,7.48,128.56,128.55,1.5331]
[1741612688109,192.68,128.6,128.55,25.15896207]
[1741612688307,104.94718521,128.59,128.55,1.5331]
[1741612689405,0.14216157,128.57,128.55,1.5331]
[1741612690608,0.14216157,128.57,128.55,0.03]
[1741612690609,23.91018521,128.56,128.55,0.03]
[1741612691325,104.94718521,128.56,128.55,0.03]
[1741612691603,112.72558521,128.56,128.55,0.03]
[1741612693407,31.68858521,128.56,128.55,0.03]
[1741612694191,50.33823407,128.56,128.55,0.03]
[1741612694596,49.27013407,128.56,128.55,0.03]
[1741612694910,18.933972,128.55,128.42,14.8]
[1741612695113,100.48903457,128.56,128.38,7.7893]
[1741612695114,0.28432314,128.45,128.38,7.7893]
[1741612695430,0.14216157,128.42,128.36,23.62586207]
[1741612695613,0.14216157,128.42,128.37,23.62586207]
[1741612695928,0.14216157,128.42,128.35,7.7906]
[1741612695929,23.62586207,128.4,128.35,31.41646207]
[1741612696225,7.48,128.39,128.35,23.62586207]
[1741612696825,7.48,128.39,128.34,7.7916]
[1741612697233,0.14216157,128.34,128.29,11.88468965]
[1741612697528,23.76802364,128.32,128.29,11.88468965]
[1741612697726,7.48,128.33,128.29,11.88468965]
[1741612697727,23.76802364,128.3,128.29,11.88468965]
[1741612698224,0.14216157,128.31,128.29,11.88468965]
[1741612698424,81.24216157,128.32,128.29,11.88468965]
[1741612698733,0.14216157,128.3,128.29,11.88468965]
[1741612698933,23.76802364,128.34,128.29,11.88468965]
[1741612698934,23.76802364,128.34,128.29,35.51055172]
[1741612699108,0.28432314,128.34,128.3,23.62586207]
[1741612699430,23.91018521,128.34,128.29,43.30505172]
[1741612699609,23.91018521,128.34,128.29,19.67918965]
[1741612699804,81.1,128.33,128.29,11.88468965]
[1741612700011,192.9,128.35,128.3,23.62586207]
[1741612700219,192.9,128.35,128.34,37.98593702]
[1741612700423,0.14216157,128.38,128.34,37.98593702]
[1741612700611,0.14216157,128.38,128.35,37.98593702]
[1741612700816,47.28327921,128.38,128.37,37.98593702]
[1741612701205,45.61667921,128.38,128.37,37.98593702]
[1741612701401,45.61667921,128.38,128.37,71.43558588]
[1741612701630,45.61667921,128.38,128.37,22.5899]
[1741612701824,45.61667921,128.38,128.34,19.4794]
[1741612702006,45.61667921,128.38,128.36,37.98593702]
[1741612702209,45.61667921,128.38,128.35,27.269]
[1741612702519,15.73147935,128.38,128.37,37.98593702]
[1741612702823,102.53017524,128.4,128.35,18.64964886]
[1741612703032,102.53017524,128.4,128.37,37.98593702]
[1741612703216,103.93176092,128.4,128.37,37.98593702]
[1741612703625,103.93176092,128.4,128.38,7.7893]
[1741612703931,92.04252234,128.4,128.38,7.7893]
[1741612704140,0.14216157,128.39,128.34,14.8]
[1741612704311,0.14216157,128.39,128.35,45.77703702]
[1741612704506,0.14216157,128.39,128.36,37.98593702]
[1741612705210,92.04252234,128.4,128.36,37.98593702]
[1741612705429,92.04252234,128.4,128.37,37.98593702]
[1741612705619,92.04252234,128.4,128.35,27.269]
[1741612705620,92.04252234,128.4,128.39,37.98593702]
[1741612705932,92.04252234,128.4,128.39,45.77463702]
[1741612706231,92.04252234,128.4,128.39,52.38183702]
[1741612706727,92.04252234,128.4,128.39,14.3959]
[1741612706932,92.04252234,128.4,128.39,52.38183702]
[1741612706933,70.92491881,128.4,128.39,52.38183702]
[1741612707228,1.881e-05,128.4,128.39,52.38183702]
[1741612707441,1.881e-05,128.4,128.39,67.18183702]
[1741612708805,0.14216157,128.44,128.39,67.18183702]
[1741612709119,37.98593702,128.43,128.38,45.77513702]
[1741612709511,37.98593702,128.41,128.37,14.8]
[1741612709722,0.14216157,128.37,128.31,25.8976]
[1741612709932,0.14216157,128.36,128.32,45.77893702]
[1741612710237,7.58,128.35,128.33,37.98593702]
[1741612710428,7.58,128.35,128.32,7.793]
[1741612710605,7.58,128.35,128.33,37.98593702]
[1741612710810,7.58,128.35,128.32,7.793]
[1741612710811,7.58,128.35,128.34,37.98593702]
[1741612711411,7.58,128.35,128.33,37.98593702]
[1741612712145,7.58,128.35,128.33,45.77793702]
[1741612712729,7.58,128.35,128.32,14.8]
[1741612712949,7.58,128.35,128.31,0.03]
[1741612713234,0.14216157,128.34,128.31,0.03]
[1741612713824,0.14216157,128.34,128.31,7.8236]
[1741612714019,45.56593702,128.35,128.31,0.03]
[1741612714220,7.58,128.35,128.32,37.98593702]
[1741612714430,7.58,128.35,128.33,37.98593702]
[1741612714608,7.58,128.35,128.34,37.98593702]
[1741612716440,7.58,128.35,128.33,37.98593702]
[1741612716629,7.58,128.35,128.32,7.793]
[1741612717435,7.58,128.35,128.34,37.98593702]
[1741612717648,7.58,128.35,128.32,7.793]
[1741612717823,7.58,128.35,128.31,14.83]
[1741612717824,7.58,128.35,128.31,42.1074]
[1741612718023,7.58,128.35,128.33,37.98593702]
[1741612718224,7.58,128.35,128.31,42.1074]
[1741612718225,7.58,128.35,128.32,7.7927]
[1741612718522,7.58,128.35,128.31,22.6235]
[1741612718739,7.58,128.35,128.32,37.98593702]
[1741612719325,7.58,128.35,128.34,37.98593702]
[1741612720119,7.58,128.35,128.33,37.98593702]
[1741612720320,7.58,128.35,128.31,27.3075]
[1741612720321,7.58,128.35,128.34,45.77773702]
[1741612720848,7.58,128.35,128.33,37.98593702]
[1741612721022,7.58,128.35,128.29,53.773]
[1741612721023,7.58,128.35,128.32,37.98593702]
[1741612721759,7.58,128.35,128.3,7.7942]
[1741612721928,53.35723702,128.35,128.3,45.78013702]
[1741612722315,0.28432314,128.34,128.28,0.03757425]
[1741612722659,0.14216157,128.34,128.3,37.98593702]
[1741612722822,0.14216157,128.34,128.31,37.98593702]
[1741612723445,0.28432314,128.34,128.3,37.98593702]
[1741612723731,0.28432314,128.34,128.29,37.98593702]
[1741612723948,0.28432314,128.34,128.3,37.98593702]
[1741612724238,7.58,128.35,128.31,37.98593702]
[1741612724555,41.88950062,128.4,128.31,37.98593702]
[1741612724556,191.7121,128.39,128.34,37.98593702]
[1741612724843,0.14216157,128.38,128.34,37.98593702]
[1741612725424,193.1,128.39,128.35,37.98593702]
[1741612725626,193.1,128.39,128.37,37.98593702]
[1741612725827,185.52,128.39,128.36,37.98593702]
[1741612726025,185.52,128.39,128.35,37.98593702]
[1741612726249,185.52,128.39,128.34,52.78593702]
[1741612726250,0.14216157,128.38,128.34,52.78593702]
[1741612726542,38.27026016,128.38,128.34,7.7916]
[1741612726850,0.28432314,128.38,128.34,7.7916]
[1741612727029,46.05956016,128.38,128.34,7.7916]
[1741612727224,38.27026016,128.38,128.34,7.7916]
[1741612727436,0.28432314,128.38,128.34,7.7916]
[1741612727837,38.27026016,128.38,128.34,7.7916]
[1741612728039,46.05956016,128.38,128.33,45.77823702]
[1741612729049,46.05956016,128.38,128.33,7.7923]
[1741612729668,0.28432314,128.35,128.31,45.80923702]
[1741612729838,7.54,128.34,128.31,45.80923702]
[1741612731841,7.54,128.34,128.32,37.98593702]
[1741612732339,7.54,128.34,128.31,45.80923702]
[1741612734172,7.54,128.34,128.33,37.98593702]
[1741612734674,7.54,128.34,128.32,37.98593702]
[1741612735137,7.54,128.34,128.31,7.8233]
[1741612735741,7.54,128.34,128.31,45.80923702]
[1741612735938,7.54,128.34,128.32,37.98593702]
[1741612736134,7.54,128.34,128.31,0.03]
[1741612736341,38.27026016,128.33,128.31,0.03]
[1741612737149,38.27026016,128.32,128.31,0.03]
[1741612737952,46.06326016,128.32,128.31,0.03]
[1741612740572,38.27026016,128.32,128.31,0.03]
[1741612740863,46.06326016,128.32,128.31,0.03]
[1741612741561,38.27026016,128.32,128.31,0.03]
[1741612741744,46.06326016,128.32,128.31,0.03]
[1741612742244,250.41290902,128.32,128.31,0.03]
[1741612743359,250.41290902,128.32,128.27,2.6792559]
[1741612743360,0.28432314,128.3,128.27,2.6492559]
[1741612743662,38.27026016,128.28,128.27,2.6492559]
[1741612743890,1.5508,128.27,128.17,42.3878]
[1741612744058,1.5508,128.27,128.18,7.8012]
[1741612744059,37.98593702,128.23,128.18,7.8012]
[1741612744361,7.56,128.22,128.19,37.98593702]
[1741612744670,7.56,128.22,128.18,45.78713702]
[1741612744848,45.54593702,128.22,128.18,7.3012]
[1741612745347,38.27026016,128.21,128.15,7.8033]
[1741612745544,38.27026016,128.21,128.16,37.98593702]
[1741612745857,0.28432314,128.21,128.16,37.98593702]
[1741612746073,0.28432314,128.21,128.17,7.8021]
[1741612746441,38.27026016,128.21,128.15,7.8033]
[1741612746640,38.27026016,128.21,128.16,37.98593702]
[1741612747263,0.28432314,128.21,128.16,37.98593702]
[1741612747645,38.27026016,128.21,128.16,37.98593702]
[1741612747849,37.98593702,128.2,128.15,45.78923702]
[1741612748050,38.27026016,128.21,128.15,45.78923702]
[1741612748276,38.27026016,128.21,128.16,37.98593702]
[1741612748585,38.27026016,128.21,128.15,45.78923702]
[1741612749284,38.12809859,128.19,128.15,7.8033]
[1741612749587,0.28432314,128.19,128.15,45.78923702]
[1741612750142,38.27026016,128.19,128.15,7.8033]
[1741612750367,38.27026016,128.19,128.16,0.03]
[1741612751078,81.1,128.2,128.16,38.01593702]
[1741612751447,81.1,128.2,128.17,37.98593702]
[1741612751645,185.76,128.22,128.18,37.98593702]
[1741612751878,185.76,128.22,128.17,6.3963]
[1741612752047,185.76,128.22,128.21,37.98593702]
[1741612752246,185.76,128.22,128.19,7.8009]
[1741612752688,185.76,128.22,128.2,37.98593702]
[1741612752896,7.54,128.24,128.21,37.98593702]
[1741612753187,7.54,128.24,128.23,37.98593702]
[1741612753756,0.28432314,128.28,128.23,37.98593702]
[1741612753949,7.54,128.27,128.23,37.98593702]
[1741612754149,7.54,128.27,128.23,45.78383702]
[1741612754454,7.54,128.27,128.24,37.98593702]
[1741612755086,7.54,128.27,128.23,7.7979]
[1741612755294,0.28432314,128.26,128.22,37.98593702]
[1741612755594,0.28432314,128.26,128.23,37.98593702]
[1741612755896,0.28432314,128.26,128.2,27.301]
[1741612755897,119.37026016,128.26,128.2,45.78623702]
[1741612756099,38.27026016,128.24,128.19,45.78673702]
[1741612756264,0.28432314,128.24,128.21,37.98593702]
[1741612756464,7.54,128.27,128.23,37.98593702]
[1741612756765,0.28432314,128.26,128.19,42.1031]
[1741612756968,38.27026016,128.26,128.21,37.98593702]
[1741612757179,0.28432314,128.24,128.2,37.98593702]
[1741612757487,38.27026016,128.24,128.19,45.78673702]
[1741612757869,119.37026016,128.24,128.19,45.78673702]
[1741612758072,0.28432314,128.22,128.18,45.78713702]
[1741612758291,7.54,128.21,128.18,45.78713702]
[1741612758497,7.54,128.21,128.19,37.98593702]
[1741612758979,7.54,128.21,128.18,45.78713702]
[1741612759176,7.54,128.21,128.19,37.98593702]
[1741612759373,7.54,128.21,128.2,37.98593702]
[1741612759582,7.54,128.21,128.18,45.78713702]
[1741612759972,7.54,128.21,128.19,37.98593702]
[1741612760173,7.54,128.21,128.2,37.98593702]
[1741612760489,7.54,128.21,128.2,45.78623702]
[1741612760690,7.54,128.21,128.18,19.5038]
[1741612760691,7.54,128.21,128.19,37.98593702]
[1741612760871,7.54,128.21,128.19,7.8006]
[1741612761387,7.54,128.21,128.17,7.8021]
[1741612761599,7.54,128.21,128.18,37.98593702]
[1741612761995,7.54,128.21,128.16,0.03]
[1741612761996,38.27026016,128.2,128.16,0.03]
[1741612762473,45.52593702,128.21,128.16,38.01593702]
[1741612763080,53.32573702,128.21,128.16,38.01593702]
[1741612763588,0.28432314,128.2,128.16,0.03]
[1741612763908,38.27026016,128.2,128.16,0.03]
[1741612764104,38.27026016,128.18,128.16,0.03]
[1741612764283,38.27026016,128.17,128.16,0.03]
[1741612764595,66.29660902,128.17,128.16,0.03]
[1741612764799,0.28432314,128.16,128.08,45.79323702]
[1741612764990,38.12809859,128.14,128.09,37.98593702]
[1741612765189,0.14216157,128.13,128.09,37.98593702]
[1741612765391,38.12809859,128.12,128.07,45.79393702]
[1741612765699,0.14216157,128.11,128.07,45.79393702]
[1741612765897,7.5,128.1,128.07,7.808]
[1741612766099,7.5,128.1,128.07,45.79393702]
[1741612766287,7.5,128.1,128.05,37.98593702]
[1741612766288,45.48593702,128.1,128.05,37.98593702]
[1741612766486,0.28432314,128.09,128.05,7.8094]
[1741612766703,0.28432314,128.09,128.04,37.98593702]
[1741612766704,38.27026016,128.09,128.04,37.98593702]
[1741612766891,38.27026016,128.09,128.03,7.8101]
[1741612766892,37.98593702,128.08,128.03,37.98593702]
[1741612767093,37.98593702,128.08,128.02,7.8111]
[1741612767094,0.28432314,128.06,128.02,45.79703702]
[1741612767289,7.52,128.05,128.02,45.79703702]
[1741612767599,7.52,128.05,128.02,7.8111]
[1741612767793,7.52,128.05,128.01,48.47689292]
[1741612767993,230.73126016,128.04,128.01,2.6792559]
[1741612768304,185.92,128.04,128.01,40.66519292]
[1741612768487,185.92,128.04,128.03,37.98593702]
[1741612768995,185.92,128.04,128.02,7.8112]
[1741612769202,185.92,128.04,128.02,45.79713702]
[1741612769401,185.92,128.04,128.01,10.4909559]
[1741612769583,185.92,128.04,128.02,37.98593702]
[1741612769783,185.92,128.04,128.01,30.0206559]
[1741612769989,185.92,128.04,128.03,37.98593702]
[1741612770308,185.92,128.04,128.03,30.5370189]
[1741612770512,185.92,128.04,128.03,7.8106]
[1741612770883,185.92,128.04,128.03,38.3476189]
[1741612771084,185.92,128.04,128.03,7.8106]
[1741612771309,185.92,128.04,128.03,38.3476189]
[1741612771515,88.64,128.09,128.03,38.3476189]
[1741612771689,7.54,128.09,128.07,30.5370189]
[1741612772221,7.54,128.09,128.06,30.5370189]
[1741612772388,7.54,128.09,128.07,30.5370189]
[1741612772711,7.54,128.09,128.08,7.8076]
[1741612772883,7.54,128.09,128.06,30.5370189]
[1741612773691,7.54,128.09,128.05,38.3464189]
[1741612773927,7.54,128.09,128.06,30.5370189]
[1741612774113,7.54,128.09,128.07,30.5370189]
[1741612774287,186.26432314,128.1,128.08,30.5370189]
[1741612774288,185.98,128.1,128.08,30.5370189]
[1741612774608,185.98,128.1,128.09,38.3440189]
[1741612776112,185.98,128.1,128.05,60.2586]
[1741612776113,185.98,128.1,128.06,7.8088]
[1741612776299,185.98,128.1,128.07,30.5370189]
[1741612776614,185.98,128.1,128.08,7.8076]
[1741612777112,185.98,128.1,128.07,38.3449189]
[1741612777412,185.98,128.1,128.05,40.7349]
[1741612777413,0.14216157,128.09,128.05,30.5370189]
[1741612777814,0.28432314,128.09,128.05,30.5370189]
[1741612778010,7.58,128.08,128.05,30.5370189]
[1741612778505,7.58,128.08,128.04,30.5370189]
[1741612778890,7.58,128.08,128.01,2.6792559]
[1741612778891,0.28432314,128.07,128.03,38.3474189]
[1741612779086,30.82134204,128.07,128.03,7.8104]
[1741612779288,0.28432314,128.07,128.03,38.3474189]
[1741612779711,7.58,128.08,128.05,30.5370189]
[1741612780011,7.58,128.08,128.03,7.8104]
[1741612780012,7.58,128.08,128.06,30.5370189]
[1741612780191,7.58,128.08,128.03,27.337]
[1741612780192,0.28432314,128.07,128.04,30.5370189]
[1741612780393,0.28432314,128.07,128.03,38.3474189]
[1741612780913,0.28432314,128.07,128.04,30.5370189]
[1741612781290,7.58,128.08,128.06,30.5370189]
[1741612781702,0.28432314,128.07,128.03,38.3474189]
[1741612783010,0.28432314,128.07,128.01,22.2087559]
[1741612783217,0.28432314,128.07,128.02,38.3482189]
[1741612783419,0.28432314,128.07,128.02,30.5370189]
[1741612783420,38.62974204,128.07,128.02,30.5370189]
[1741612783627,0.28432314,128.04,128.01,2.6792559]
[1741612783798,7.56,128.03,128.01,2.6792559]
[1741612784198,81.38432314,128.02,128.01,2.6792559]
[1741612784416,304.34124204,128.02,128.01,2.6792559]
[1741612784714,329.32283355,128.02,128.01,1e-08]
[1741612784900,0.28432314,127.97,127.91,30.5370189]
[1741612785220,30.5370189,127.94,127.87,7.8204]
[1741612785418,38.63694204,127.95,127.9,30.5370189]
[1741612785608,30.82134204,127.95,127.87,22.1204]
[1741612785800,0.28432314,127.93,127.89,30.5370189]
[1741612786226,0.14216157,127.93,127.9,30.5370189]
[1741612786429,0.14216157,127.93,127.9,35.7348607]
[1741612786598,30.67918047,127.95,127.9,35.7348607]
[1741612786599,0.28432314,127.95,127.92,30.5370189]
[1741612786799,0.28432314,127.95,127.91,30.5370189]
[1741612787114,0.28432314,127.95,127.9,13.0159418]
[1741612787429,0.28432314,127.95,127.91,30.5370189]
[1741612787834,0.28432314,127.95,127.92,30.5370189]
[1741612788303,0.28432314,127.95,127.91,30.5370189]
[1741612788624,0.28432314,127.95,127.9,13.0159418]
[1741612788815,0.28432314,127.95,127.92,30.5370189]
[1741612789017,7.56,127.96,127.94,30.5370189]
[1741612789405,7.56,127.96,127.95,30.5370189]
[1741612790308,0.28432314,127.99,127.95,30.5370189]
[1741612790523,7.56,127.97,127.95,30.5370189]
[1741612791207,7.56,127.97,127.92,30.5370189]
[1741612791208,7.56,127.97,127.96,30.5370189]
[1741612792206,186.04,128.02,127.96,30.5370189]
[1741612792521,186.04,128.02,128.0,30.5370189]
[1741612792714,186.04,128.02,128.01,30.5370189]
[1741612793233,186.04,128.02,128.01,38.3488189]
[1741612793532,186.04,128.02,128.0,7.8123]
[1741612793928,7.68216157,128.03,128.0,7.8123]
[1741612794111,7.68216157,128.03,128.0,38.3493189]
[1741612794719,0.063,128.02,128.0,7.8123]
[1741612794915,0.063,128.02,128.0,38.3493189]
[1741612795431,0.20516157,128.02,127.98,30.5370189]
[1741612795630,0.14216157,128.01,127.97,30.5370189]
[1741612795931,0.20516157,128.02,127.98,30.5370189]
[1741612797204,0.063,128.02,128.01,38.3488189]
[1741612797612,0.063,128.02,128.01,7.8118]
[1741612797828,0.20516157,128.02,128.0,7.8123]
[1741612798211,0.063,128.02,128.01,30.5370189]
[1741612799125,0.28432314,128.08,128.01,45.3370189]
[1741612799320,0.28432314,128.06,128.03,30.5370189]
[1741612799523,0.28432314,128.06,128.02,7.8112]
[1741612799838,30.82134204,128.06,128.01,7.8116]
[1741612800441,7.52,128.07,128.04,30.5370189]
[1741612800602,0.28432314,128.08,128.04,30.5370189]
[1741612800803,7.52,128.07,128.01,27.3413]
[1741612801125,7.52,128.07,128.05,30.5370189]
[1741612801304,0.28432314,128.08,128.04,30.5370189]
[1741612801510,0.28432314,128.08,128.04,2.4559613]
[1741612801511,7.52,128.07,128.04,2.4559613]
[1741612801710,7.52,128.07,128.04,32.9929802]
[1741612802309,267.323,128.09,128.05,30.5370189]
[1741612802626,186.223,128.09,128.08,30.5370189]
[1741612803005,0.063,128.09,128.08,30.5370189]
[1741612803207,0.063,128.09,128.08,38.3446189]
[1741612804028,0.063,128.09,128.08,7.8076]
[1741612804217,0.063,128.09,128.07,7.808]
[1741612804446,7.583,128.09,128.07,38.3450189]
[1741612804615,7.583,128.09,128.07,30.5370189]
[1741612805010,7.583,128.09,128.05,7.8093]
[1741612805228,7.583,128.09,128.06,30.5370189]
[1741612805446,0.28432314,128.08,128.04,2.4559613]
[1741612805612,0.28432314,128.08,128.05,30.5370189]
[1741612806510,7.583,128.09,128.06,30.5370189]
[1741612806705,7.583,128.09,128.07,30.52078578]
[1741612806910,7.583,128.09,128.08,30.52078578]
[1741612807134,0.28432314,128.08,128.04,2.4559613]
[1741612807356,0.28432314,128.08,128.04,10.2658613]
[1741612807534,0.28432314,128.08,128.05,30.52078578]
[1741612808125,0.28432314,128.08,128.04,10.2658613]
[1741612808324,38.61290892,128.08,128.04,2.4559613]
[1741612808527,0.28432314,128.06,128.04,2.4559613]
[1741612808748,30.52078578,128.06,128.04,2.4559613]
[1741612809054,88.683,128.09,128.05,30.54615955]
[1741612809423,7.583,128.09,128.05,30.54615955]
[1741612809622,45.93625955,128.09,128.04,33.00212085]
[1741612810232,0.28432314,128.08,128.04,33.00212085]
[1741612810831,0.28432314,128.08,128.04,2.4559613]
[1741612811044,45.93625955,128.09,128.05,30.54615955]
[1741612811045,7.583,128.09,128.05,30.54615955]
[1741612811357,0.28432314,128.08,128.04,2.4559613]
[1741612811521,30.54615955,128.06,128.04,2.4559613]
[1741612811728,30.83048269,128.05,128.04,2.4559613]
[1741612811923,0.28432314,128.05,128.04,2.4559613]
[1741612812152,81.1,128.07,128.04,2.4559613]
[1741612812472,7.52,128.07,128.06,30.54615955]
[1741612812752,7.52,128.07,128.05,30.54615955]
[1741612812956,7.52,128.07,128.06,30.54615955]
[1741612813352,0.063,128.09,128.07,7.8082]
[1741612813523,0.063,128.09,128.08,30.54615955]
[1741612814151,0.063,128.09,128.04,23.6831613]
[1741612814361,0.063,128.09,128.06,30.54615955]
[1741612814535,0.063,128.09,128.07,30.54615955]
[1741612814857,0.063,128.09,128.04,47.23922085]
[1741612814858,0.063,128.09,128.08,30.54615955]
[1741612815252,0.28432314,128.17,128.08,75.8923191]
[1741612815447,0.28432314,128.17,128.14,30.54615955]
[1741612815448,7.52,128.16,128.14,30.54615955]
[1741612815630,0.28432314,128.17,128.14,30.54615955]
[1741612815838,7.52,128.15,128.14,30.54615955]
[1741612816641,186.08,128.18,128.14,33.00212085]
[1741612816830,193.6,128.18,128.16,30.54615955]
[1741612817446,224.14615955,128.18,128.14,2.4559613]
[1741612817763,30.83048269,128.17,128.14,2.4559613]
[1741612817927,0.28432314,128.17,128.14,33.00212085]
[1741612818128,30.83048269,128.17,128.14,2.4559613]
[1741612818426,0.28432314,128.17,128.14,2.4559613]
[1741612818627,0.28432314,128.17,128.14,33.00212085]
[1741612818867,0.28432314,128.17,128.14,2.4559613]
[1741612819435,0.28432314,128.17,128.14,33.00212085]
[1741612819649,193.6,128.18,128.14,40.80602085]
[1741612819969,193.6,128.18,128.16,30.54615955]
[1741612820262,193.6,128.18,128.14,10.2598613]
[1741612820263,193.6,128.18,128.15,30.54615955]
[1741612820930,193.6,128.18,128.16,30.54615955]
[1741612820931,186.08,128.18,128.16,30.54615955]
[1741612821144,193.58,128.18,128.16,30.54615955]
[1741612821344,193.58,128.18,128.14,2.4559613]
[1741612821345,201.3815,128.18,128.14,2.4559613]
[1741612821546,111.93048269,128.17,128.14,2.4559613]
[1741612821734,81.38432314,128.17,128.14,33.00212085]
[1741612821930,193.58,128.18,128.15,30.54615955]
[1741612822361,193.6,128.18,128.14,2.4559613]
[1741612822556,193.6,128.18,128.17,30.54615955]
[1741612822731,186.08,128.18,128.17,30.54615955]
[1741612822939,193.58,128.18,128.17,30.54615955]
[1741612823665,7.5,128.19,128.17,38.34825955]
[1741612823969,7.5,128.19,128.18,30.54615955]
[1741612824169,7.5,128.19,128.16,30.54615955]
[1741612824661,7.5,128.19,128.14,10.2596613]